Cogmind - Beta 14 @@@ ROGUE MODE // 2024.11.15 @ 15:21:24 Player: Disco Result: Destroyed by G-47 Trooper with Particle Gun Performance ------------- Evolutions (2) 1000 Regions Visited (3) 600 Robots Destroyed (35) 175 Value Destroyed (677) 677 Prototype IDs (4) 80 Alien Tech Used (0) 0 Bonus (2) 2 TOTAL SCORE: 2534 Bonus ------- High Alert Combat Kills 2 Cogmind --------- Core Integrity 0/550 Matter 300/300 Energy 100/100 System Corruption 11% Temperature Cool (18) Movement Core (150) Ox2 Location -8/Materials Parts ------- > --- POWER (1) -------- (None) > --- PROPULSION (4) --- (None) > --- UTILITY (4) ------ Small Storage Unit > --- WEAPON (2) ------- Power Maul > --- INVENTORY (8) ---- Improved Ion Engine Carbon-fiber Leg EMP Blaster Katana Katana Katana Peak State ------------ > --- POWER ------------ Improved Ion Engine > --- PROPULSION ------- Aluminum Leg Aluminum Leg Improved Aluminum Leg VSS Leg > --- UTILITY ---------- Small Storage Unit Small Storage Unit Light Armor Plating Reactive Plating > --- WEAPON ----------- EMP Blaster Katana > --- INVENTORY -------- Improved Ion Engine Improved Ion Engine Assault Rifle Katana Katana Katana [Rating: 21] Favorites ----------- Power Ion Engine Engine Ion Engine Propulsion Aluminum Leg Leg Aluminum Leg Utility Small Storage Unit Device Sensor Array Storage Small Storage Unit Protection Light Armor Plating Weapon Katana Energy Gun Lightning Gun Ballistic Gun Light Assault Rifle Launcher Grenade Launcher Impact Weapon Hammer Slashing Weapon Katana Build | -11 -10 -9 -8 ------- Run | Yrd Mat Mat Mat Slots Evolved 4 | . . 2 2 Power . | . . . . Propulsion 2 | . . 1 1 Utility 2 | . . 1 1 Weapon . | . . . . Parts Attached 36 | 5 12 11 8 Power 4 | 1 1 1 1 Engine 4 | 1 1 1 1 Core . | . . . . Reactor . | . . . . Propulsion 14 | 1 5 5 3 Treads . | . . . . Leg 14 | 1 5 5 3 Wheel . | . . . . Hover . | . . . . Flight . | . . . . Utility 7 | 1 2 3 1 Device 3 | . 2 1 . Storage 2 | 1 . 1 . Processor . | . . . . Hackware . | . . . . Protection 2 | . . 1 1 Artifact . | . . . . Weapon 11 | 2 4 2 3 Energy Gun 1 | . . . 1 Energy Cannon . | . . . . Ballistic Gun 3 | 2 . . 1 Ballistic Cannon . | . . . . Launcher 3 | . 2 1 . Special Weapon . | . . . . Impact Weapon 3 | . 2 . 1 Slashing Weapon 1 | . . 1 . Piercing Weapon . | . . . . Special Melee Weapon . | . . . . Unidentified Prototypes . | . . . . Corrupted Parts 1 | . . . 1 System Corruption 6 | . . . 6 Parts Lost 16 | . . 2 14 Power 2 | . . . 2 Propulsion 6 | . . . 6 Utility 4 | . . 1 3 Weapon 4 | . . 1 3 Highest Loss Streak 11 | . . 1 11 To Critical Strikes . | . . . . Average Slot Usage (%) 93 | . 95 98 77 Engine 11 | . 13 11 7 Leg 28 | . 27 32 23 Device 12 | . 11 18 . Storage 13 | . 14 11 17 Protection 3 | . . 2 10 Ballistic Gun 3 | . 8 . 1 Launcher 9 | . 8 11 6 Impact Weapon 4 | . 9 . . Slashing Weapon 6 | . . 10 8 Peak Build Rating 21 | 5 7 15 21 Average Rating 10 | 3 6 12 15 On Entrance 6 | . 5 7 15 Naked Turns . | . . . . Heaviest Build 36 | 12 16 26 36 Greatest Support 45 | 10 20 33 45 Greatest Overweight (x) 6 | 1 3 . 6 Average Overweight (x) . | . . . . Largest Inventory Capacity 8 | 8 8 8 8 Average Capacity 7 | 7 8 8 8 Most Carried 8 | 5 8 8 8 Average Carried 6 | 2 6 7 6 Final Capacity 8 | 8 8 8 8 Final Carried 8 | 3 8 6 6 Class Distribution -------------------- 100% | Mutant Dominant Class ---------------- Mutant | -10/Materials Mutant | -9/Materials Mutant | -8/Materials Resources | -11 -10 -9 -8 ----------- Run | Yrd Mat Mat Mat Matter Collected 596 | 225 83 195 93 Remotely . | . . . . Salvage Created 852 | . 136 358 358 Parts 60 | . 15 29 16 Haulers Intercepted . | . . . . Recyclers Shooed . | . . . . Parts Field Recycled . | . . . . Retrieved Matter . | . . . . Parts Self-Destructed . | . . . . Prevented . | . . . . Kills | -11 -10 -9 -8 ------- Run | Yrd Mat Mat Mat Combat Hostiles Destroyed 25 | . 4 12 9 Melee 15 | . 1 7 7 AOE 9 | . 2 5 2 Classes Destroyed 9 | . 6 2 1 Worker 1 | . . 1 . Builder 2 | . 1 1 . Tunneler 2 | . 1 . 1 Mechanic 1 | . 1 . . Watcher 4 | . 1 3 . Swarmer 16 | . 3 9 4 Grunt 6 | . 1 1 4 Brawler 1 | . . . 1 Sentry 2 | . . 2 . Best Kill Streak 5 | . 4 5 3 Combat Bots Only 3 | . 2 3 3 Max Kills in Single Turn 4 | . 2 4 1 Gunslinging . | . . . . Exploded 2 | . 2 2 1 Melee 1 | . 1 1 1 Uniques/NPCs Destroyed . | . . . . Combat | -11 -10 -9 -8 -------- Run | Yrd Mat Mat Mat Hostile Shots Fired 283 | . 31 51 201 Missed 66 | . 7 12 47 Damage Taken 2317 | . 208 354 1755 Core 690 | . 62 65 563 Absorbed by Shields . | . . . . Ignored by Resistances 58 | . . . 58 Regen/Repaired (Parts) 55 | . . 55 . Core Remaining (%) 86 | 100 75 83 . Volleys Fired 11 | . 2 3 6 Largest 1 | . 1 1 1 Hottest 55 | . 30 33 55 Shots Fired 11 | . 2 3 6 Gun 1 | . . . 1 Cannon . | . . . . Launcher 10 | . 2 3 5 Special . | . . . . Kinetic . | . . . . Thermal . | . . . . Explosive 3 | . 2 1 . Electromagnetic 8 | . . 2 6 Robot Hit Streak 6 | . . . 6 Robot Miss Streak 3 | . 1 3 . Penetration Max . | . . . . Secondary Targets . | . . . . Shots Hit Robots 49 | . 7 17 25 Core Hits 34 | . 7 16 11 Critical Kills . | . . . . Critical Parts Destroyed 2 | . 1 . 1 Critical Strikes 4 | . 1 1 2 Smash 2 | . 1 . 1 Sever 2 | . . 1 1 Melee Attacks 66 | . 14 20 32 Impact 18 | . 14 . 4 Slashing 48 | . . 20 28 Piercing . | . . . . Sneak Attacks 2 | . 2 . . Combat Hostiles . | . . . . Follow-up Attacks . | . . . . Damage Inflicted 2157 | . 520 791 846 Guns 20 | . . . 20 Cannons . | . . . . Explosions 745 | . 272 253 220 Melee 1392 | . 248 538 606 Ramming . | . . . . Kinetic . | . . . . Thermal 154 | . . 80 74 Explosive 348 | . 272 76 . Electromagnetic 263 | . . 97 166 Impact 340 | . 248 . 92 Slashing 1052 | . . 538 514 Piercing . | . . . . Highest Corruption 11 | . . . 11 Average Corruption 5 | . . . 5 Corruption Purged . | . . . . Corruption Blocked . | . . . . Effects 6 | . . . 6 Message Errors 2 | . . . 2 Matter Fused 3 | . . . 3 Data Loss (minor) 1 | . . . 1 Overload Shots . | . . . . Overflow Damage 251 | . 150 46 55 Projectiles . | . . . . Explosions 108 | . 83 25 . Melee 143 | . 67 21 55 Knockbacks 1 | . 1 . . Impact 1 | . 1 . . Kinetic . | . . . . Secondary . | . . . . Self-Inflicted Damage 19 | . 19 . . Shots 1 | . 1 . . Rammed . | . . . . Targets Rammed . | . . . . Kicked . | . . . . Crushed . | . . . . Highest Temperature 13 | . . . 13 Average Temperature 7 | . . . 7 Received Heat Transfer 603 | . . 63 540 Siege Activations . | . . . . Robots Corrupted 3 | . 3 . . Combat Hostiles 1 | . 1 . . Parts Fried 5 | . 4 . 1 Impact Corruptions 7 | . 6 . 1 Robots Melted . | . . . . Combat Hostiles . | . . . . Parts Melted . | . . . . Heat Transferred 250 | . . 150 100 Parts Sabotaged . | . . . . Parts Stolen . | . . . . Parts Stripped . | . . . . Power Chain Reactions 2 | . . 1 1 Alert | -11 -10 -9 -8 ------- Run | Yrd Mat Mat Mat Peak Influence 404 | . 181 404 316 Initial 85 | . . 76 85 Average 153 | . 80 209 198 Maximum Alert Level 2 | . . 2 1 Low Security (%) 70 | 100 100 50 53 Level 1 28 | . . 48 46 Level 2 . | . . . . Level 3 . | . . . . Level 4 . | . . . . Level 5 . | . . . . High Security . | . . . . Max Security . | . . . . Squads Dispatched 4 | . 2 2 . Investigation 1 | . . 1 . Extermination . | . . . . Reinforcement 3 | . 2 1 . Assault . | . . . . Garrison . | . . . . Intercept . | . . . . Searches Triggered . | . . . . Construction Impeded . | . . . . Haulers Reinforced . | . . . . Active Scanning Responses . | . . . . Cargo Convoy Interrupts . | . . . . Stealth | -11 -10 -9 -8 --------- Run | Yrd Mat Mat Mat Distress Signals 2 | . 1 1 . Communications Jammed . | . . . . Distress Signals . | . . . . Times Spotted 48 | . 11 19 18 Peak Tracking Total 7 | . 6 4 7 Tactical Retreats 4 | . . . 4 Traps | -11 -10 -9 -8 ------- Run | Yrd Mat Mat Mat Traps Triggered 3 | . 3 . . Indirectly . | . . . . Trap Hack Attempts . | . . . . Triggered . | . . . . Disarmed . | . . . . Reprogrammed . | . . . . Reused . | . . . . Traps Extracted . | . . . . Installed . | . . . . Triggered . | . . . . Machines | -11 -10 -9 -8 ---------- Run | Yrd Mat Mat Mat Machines Disabled 3 | . 2 1 . Max in Single Turn 2 | . 2 1 . Machines Repaired . | . . . . Machines Dismantled . | . . . . Machines Sabotaged . | . . . . Overloaded Fab Kills . | . . . . Hacking | -11 -10 -9 -8 --------- Run | Yrd Mat Mat Mat Machines Accessed 12 | . 4 8 . Terminals 9 | . 3 6 . Fabricators . | . . . . Repair Stations 1 | . . 1 . Recycling Units 1 | . 1 . . Scanalyzers 1 | . . 1 . Garrison Access . | . . . . Total Hacks 31 | . 8 23 . Successful 22 | . 6 16 . Failed 9 | . 2 7 . Catastrophic 1 | . . 1 . Database Lockouts . | . . . . Manual . | . . . . Terminals 23 | . 7 16 . Fabricators . | . . . . Repair Stations 5 | . . 5 . Recycling Units 1 | . 1 . . Scanalyzers 2 | . . 2 . Garrison Access . | . . . . Terminal Hacks 16 | . 5 11 . Record 2 | . . 2 . Prototype ID Bank 2 | . 1 1 . Branch Access Points 1 | . . 1 . Emergency Access Points 2 | . . 2 . Terminal Index 1 | . 1 . . Alert Level 1 | . . 1 . Unreport Threat 1 | . . 1 . Locate Traps 3 | . 1 2 . Dispatch Records 1 | . 1 . . Maintenance Status 1 | . . 1 . Registered Components 1 | . 1 . . Fabricator Hacks . | . . . . Repair Station Hacks 3 | . . 3 . Scan Component 2 | . . 2 . Repair 1 | . . 1 . Recycling Unit Hacks 1 | . 1 . . Report Inventory 1 | . 1 . . Scanalyzer 2 | . . 2 . Insert Component 1 | . . 1 . Analyze 1 | . . 1 . Garrison Access Hacks . | . . . . Unauthorized Hacks . | . . . . Terminals . | . . . . Fabricators . | . . . . Repair Stations . | . . . . Recycling Units . | . . . . Scanalyzers . | . . . . Garrison Access . | . . . . Data Cores Recovered . | . . . . Used . | . . . . Hacking Detections 8 | . 2 6 . Full Trace Events 1 | . . 1 . Feedback Events . | . . . . Feedback Blocked . | . . . . Robot Schematics Acquired . | . . . . Robots Built . | . . . . Authchips . | . . . . Time . | . . . . Total Robot Build Rating . | . . . . Part Schematics Acquired 1 | . . 1 . Parts Built . | . . . . Authchips . | . . . . Time . | . . . . Total Part Build Rating . | . . . . Parts Repaired 1 | . . 1 . Time 26 | . . 26 . Parts Recycled . | . . . . Recycled Matter . | . . . . Retrieved Matter . | . . . . Retrieved Components . | . . . . Parts Scanalyzed 1 | . . 1 . Part Schematics Acquired 1 | . . 1 . Parts Damaged . | . . . . Bothacking | -11 -10 -9 -8 ------------ Run | Yrd Mat Mat Mat Used RIF Installer . | . . . . Robots Hacked . | . . . . Non-combat . | . . . . Combat . | . . . . Robot Hacks Applied . | . . . . Relay Couplers Released . | . . . . Fabnet Peak Effective % . | . . . . Robots Rewired . | . . . . Allies Hacked . | . . . . Hacks Repelled . | . . . . Allies | -11 -10 -9 -8 -------- Run | Yrd Mat Mat Mat Total Allies . | . . . . Largest Group . | . . . . Highest-Rated Group . | . . . . Highest-Rated Ally . | . . . . Total Orders . | . . . . Ally Attacks . | . . . . Total Damage . | . . . . Kills . | . . . . Allies Corrupted . | . . . . Allies Melted . | . . . . Intel | -11 -10 -9 -8 ------- Run | Yrd Mat Mat Mat Robot Analysis Total . | . . . . Derelict Logs Recovered . | . . . . Drone Launches . | . . . . Drone Recoveries . | . . . . Exploration | -11 -10 -9 -8 ------------- Run | Yrd Mat Mat Mat Turns Passed 1810 | 53 668 718 371 Spaces Moved 1127 | 31 455 462 179 Core 23 | 12 5 . 6 Treads . | . . . . Legs 1104 | 19 450 462 173 Wheels . | . . . . Hover . | . . . . Flight . | . . . . Fastest Speed 50 | 50 100 120 112 Average Speed 123 | 135 120 120 136 Slowest Speed 350 | 190 200 120 350 Overloaded Moves . | . . . . Propulsion Burnouts . | . . . . Robots Hopped . | . . . . Cave-ins Triggered . | . . . . Exploration Rate (%) 33 | 3 71 39 20 Regions Visited 3 Branch Regions . Pre-discovered Areas . | . . . . Known Exits Taken . | . . . . Unknown Exits Taken 3 | 1 1 1 . Scrap Searched . | . . . . Spaces Dug . | . . . . Terrain Destroyed 48 | . 35 8 5 Melee . | . . . . Projectile . | . . . . AOE 48 | . 35 8 5 Terrain Rammed . | . . . . Walls Destroyed . | . . . . Machines Disabled . | . . . . Actions | -11 -10 -9 -8 --------- Run | Yrd Mat Mat Mat Total 1437 | 42 548 597 250 Wait 146 | . 50 80 16 Move 1124 | 30 454 461 179 Hop . | . . . . Pick Up 39 | 7 13 11 8 Fast Attach 6 | 1 5 . . Attach 24 | 4 5 8 7 Detach 1 | . . 1 . Swap 6 | . 2 3 1 Drop 14 | . 3 10 1 Fire 11 | . 2 3 6 Melee 66 | . 14 20 32 Ram . | . . . . Kick . | . . . . Crush . | . . . . Escape Stasis . | . . . . Rewire . | . . . . Trap . | . . . . Miscellaneous . | . . . . Route ------- -11/Scrapyard -10/Materials (discovered 2 exits: *Mat / [*Min]) -9/Materials (discovered 2 exits: [*Mat] / Min) -8/Materials (discovered 1 exit: [*Fac]) History --------- Turn | Location | Event 20 | -11/Scrapyard | Discovered new exit (range 15) 54 | -11/Scrapyard | Entered Materials 256 | -10/Materials | Discovered new exit (range 12) 304 | -10/Materials | Build established: Mutant 580 | -10/Materials | Discovered new exit (range 8) 722 | -10/Materials | Entered another Materials area 722 | -9/Materials | Evolved 2 slots: Propulsion x1, Utility x1 827 | -9/Materials | Repaired Aluminum Leg 931 | -9/Materials | Identified exit to Mines 1351 | -9/Materials | Discovered new exit (range 11) 1440 | -9/Materials | Entered another Materials area 1440 | -8/Materials | Evolved 2 slots: Propulsion x1, Utility x1 1701 | -8/Materials | Lost 3 parts (2n1u) 1711 | -8/Materials | Discovered new exit (range 15) 1779 | -8/Materials | System corruption reached 10% 1791 | -8/Materials | Core integrity fell below 50% 1805 | -8/Materials | Core integrity fell below 20% 1811 | -8/Materials | Destroyed by G-47 Trooper with Particle Gun Last Messages --------------- 01782_ Katana destroyed. 01783_ Aluminum Leg destroyed. 01784_ Imp. Ion Engine destroyed. 01784_ Acquired Power Maul. 01785_ System corrupted: Component data lost. 01786_ Lightning Gun destroyed. 01790_ M-13 Machinist repairs G-50 Soldier. 01792_ M-13 Machinist destroyed. 01798_ Critical hit (Burn: +37). 01803_ G-50 Soldier suffers critical hit (Smash). 01803_ Destroyed Lgt. Angular Momentum Engine. 01803_ G-50 Soldier system corrupted by crushing effect. 01803_ G-50 Soldier destroyed. 01806_ Acquired 10 matter. 01807_ Sml. Storage Unit destroyed. 01809_ System corrupted: Matter fused (-7). 01809_ Acquired 7 matter. 01810_ Acquired Corrupted Carbon-fiber Leg. Map ----- +----------------------------------------------------+ | | | | | | | | | | | ?????????????????????????????????????????????????? | | ?????????????????????????????????????????????????? | | ?????????????????????????????????????????????????? | | ?????????????????????????????????????????????????? | | ?????????????????????????????????????????????????? | | ?????????????????????????????????????????????????? | | ??????????????#####??????????????????????????????? | | ??????????????# #??????????????????????????????? | | ??????????????# < #??????????????????????????????? | | ??????????????# #??????????????????????????????? | | ??????????????# #??????????????????????????????? | | ??????????????# #??????????????????????????????? | | ??????????????# #??????????????????????????????? | | ??????????????# #??????????????????????????????? | | ??????????????# #??????????????????????????????? | | ????########### #??????????????????????????????? | | ?? #??????????????????????????????? | | ?? ^ #################+##+#?????????? | | ?????########## =% g #?????????? | | ??????????????# g % t +?????????? | | ??????????????#t s!%=%@ #?????????? | | ?##############+## s ##########???????????????? | | ?# ## #% #????????????????????????? | | ?# """ ## !# [ /[[#????????????????????????? | | ?#] """ ## =%/ #[[//[[#????????????????????????? | | ?# """ ## = ########????????????????????????? | | ?# ## #???????????????????????????????? | | ## ??# [ #???????????????????????????????? | | ###+####### % ##???????????????????????????????? | | %| %=########?????????????????????????? | | * [ = ??????????????????? | | =# #######?????????????????????????? | | ##### ##### ###???????????????????????????????? | | ######+##### #?????????????????????????????????? | | # [ ## #?????????????????????????????????? | | # ## #?????????????????????????????????? | | + = ## #?????????????????????????????????? | | # ## #?????????????????????????????????? | | ############ #?????????????????????????????????? | | #??????######+######?????????????????????????????? | | #??????# #?????????????????????????????? | | #??????# #?????????????????????????????? | | #??????# #?????????????????????????????? | | #??????# #?????????????????????????????? | | #??????# #?????????????????????????????? | +----------------------------------------------------+ Best States ------------- Heat Dissipation 31 Energy Generation 12 Energy Capacity 265 Matter Stores 300 Matter Capacity 300 Sight Range 16 Robot Scan Range 14 Terrain Scan Range 14 Terrain Scan Density 10 Armor Coverage 300 Resistance: KI 20 Evasion (%) 55 Item Schematics ----------------- Aluminum Leg | -9/Materials | Scanalyzed Robot Schematics ------------------ None Fabricated ------------ Nothing Alien Tech Used ----------------- None Achievements -------------- None Challenges ------------ None Game ------ Seed HugeDeuteriumSegregator Manual? 0 Play Time 00:24:42 Cumulative 9.1 hours Start 2024.11.15 @ 14:58:49 End 2024.11.15 @ 15:21:24 Sessions 1 Manual Loads 0 Difficulty Rogue Special Mode None Game No. 17 Rogue 14 Adventurer 3 Explorer 0 Win Type - Total 0 Types 0/0/0/0/0/0/0/0/0 Lore% 8 Gallery% 16 Achievement% 14 Wizard Run 0 Options --------- Layout 1 ASCII 0 Keyboard 0 Movement Mouse Keybinds 0 Fullscreen 1 Font 24/Smallcaps Map View 50x35 Zoom Use 0% Tactical HUD 1 Map Filters NONE Filters NONE Steam 1 RUN: 2f39c290-d275-425a-b142-e58f3c5fcb65